Cogmind - Beta 13 @@@ ROGUE MODE // 2024.03.05 @ 22:55:14 Player: Qwertychrish Result: Destroyed by Y-54 Guardian with Gatling Laser Performance ------------- Evolutions (3) 1500 Regions Visited (5) 1000 Robots Destroyed (65) 325 Value Destroyed (2279) 2279 Prototype IDs (1) 20 Alien Tech Used (0) 0 Bonus (66) 66 TOTAL SCORE: 5190 Bonus ------- High Alert Combat Kills 66 Cogmind --------- Core Integrity 0/700 Matter 111/300 Energy 91/100 System Corruption 4% Temperature Cool (6) Movement Core (50) Location -7/Factory Parts ------- > --- POWER (1) -------- (None) > --- PROPULSION (4) --- Cesium-ion Thruster > --- UTILITY (5) ------ Visual Processing Unit Improved Signal Interpreter Armor Integrity Analyzer > --- WEAPON (3) ------- (None) > --- INVENTORY (5) ---- Advanced Weight Redist. System Advanced Weight Redist. System Improved Sensor Array Improved Medium Armor Plating Advanced EMP Blaster Peak State ------------ > --- POWER ------------ Light Nuclear Core > --- PROPULSION ------- Armored Treads Medium Treads Medium Treads Medium Treads > --- UTILITY ---------- Huge Storage Unit Visual Processing Unit Improved Signal Interpreter Advanced Targeting Computer Armor Integrity Analyzer > --- WEAPON ----------- Heavy Ion Cannon Flak Cannon Gauss Cannon > --- INVENTORY -------- Light Ion Engine Light Angular Momentum Engine Improved Treads Wheel Compact Wheel High-capacity Matter Pod Advanced Weight Redist. System Advanced Weight Redist. System Advanced Weight Redist. System Advanced Weight Redist. System Improved Sensor Array Improved Targeting Computer Improved Light Armor Plating Improved Light Armor Plating Improved Medium Armor Plating Improved Medium Armor Plating Improved Medium Armor Plating High-powered Tractor Beam Minigun Advanced EMP Blaster Advanced EMP Blaster Improved Grenade Launcher Improved Grenade Launcher Heavy Flail [Rating: 48] Favorites ----------- Power Light Nuclear Core Engine Light Ion Engine Power Core Light Nuclear Core Propulsion Medium Treads Treads Medium Treads Leg Aluminum Leg Wheel Armored Wheel Flight Unit Cesium-ion Thruster Utility Visual Processing Unit Device Seismic Detector Storage Large Storage Unit Processor Visual Processing Unit Protection Improved Medium Armor Plating Weapon Light Assault Rifle Energy Gun Medium Laser Energy Cannon Heavy Ion Cannon Ballistic Gun Light Assault Rifle Ballistic Cannon Gauss Cannon Launcher Improved Grenade Launcher Impact Weapon Heavy Flail Build | -11 -10 -9 -8 -8 -7 ------- Run | Yrd Mat Mat Mat Sto Fac Slots Evolved 6 | . . 2 2 . 2 Power . | . . . . . . Propulsion 2 | . . . 1 . 1 Utility 3 | . . 2 . . 1 Weapon 1 | . . . 1 . . Parts Attached 74 | 6 5 12 13 13 25 Power 11 | 1 1 2 1 3 3 Engine 5 | 1 1 2 . . 1 Core 6 | . . . 1 3 2 Reactor . | . . . . . . Propulsion 25 | 2 2 6 3 2 10 Treads 5 | . . . . . 5 Leg 5 | 2 . 2 . . 1 Wheel 13 | . 2 4 3 2 2 Hover . | . . . . . . Flight 2 | . . . . . 2 Utility 14 | 1 2 3 5 . 3 Device 3 | . . 2 1 . . Storage 4 | 1 2 . . . 1 Processor 4 | . . 1 2 . 1 Hackware . | . . . . . . Protection 3 | . . . 2 . 1 Artifact . | . . . . . . Weapon 24 | 2 . 1 4 8 9 Energy Gun 1 | 1 . . . . . Energy Cannon 1 | . . . . . 1 Ballistic Gun 9 | 1 . 1 4 2 1 Ballistic Cannon 7 | . . . . 3 4 Launcher 5 | . . . . 3 2 Special Weapon . | . . . . . . Impact Weapon 1 | . . . . . 1 Slashing Weapon . | . . . . . . Piercing Weapon . | . . . . . . Special Melee Weapon . | . . . . . . Unidentified Prototypes 1 | . . . . 1 . Parts Lost 33 | . 1 2 4 8 18 Power 7 | . 1 1 . 3 2 Propulsion 13 | . . 1 2 4 6 Utility 3 | . . . 1 . 2 Weapon 10 | . . . 1 1 8 Highest Loss Streak 12 | . 1 1 2 5 12 To Critical Strikes . | . . . . . . Average Slot Usage (%) 91 | . 85 89 98 92 90 Engine 3 | . 14 10 . . . Core 4 | . . . 8 7 5 Treads 12 | . . . . . 25 Wheel 12 | . 21 21 25 22 1 Device 3 | . . 16 6 . . Storage 8 | . 14 11 9 9 6 Processor 19 | . . 7 13 27 28 Energy Gun 3 | . 14 11 3 . . Ballistic Gun 10 | . 14 11 23 21 4 Ballistic Cannon 6 | . . . . 3 11 Naked Turns . | . . . . . . Heaviest Build 106 | 11 86 30 39 37 106 Greatest Support 104 | 20 32 32 36 36 104 Greatest Overweight (x) 3 | 2 2 2 1 3 1 Average Overweight (x) . | . . . . . . Largest Inventory Capacity 25 | 8 25 15 15 15 25 Average Capacity 18 | 7 15 15 15 15 22 Most Carried 25 | 6 9 15 15 15 25 Average Carried 16 | 4 7 14 14 14 19 Final Capacity 15 | 8 15 15 15 15 5 Final Carried 15 | 6 9 15 15 14 5 Class Distribution -------------------- 40% | Mutant 22% | Gunner 17% | Scavenger-Gunner 10% | Scavenger-Mutant 6% | Tank Dominant Class ---------------- Mutant | -10/Materials Mutant | -9/Materials Tank | -8/Materials Scavenger-Gunner | -8/Storage Gunner | -7/Factory Resources | -11 -10 -9 -8 -8 -7 ----------- Run | Yrd Mat Mat Mat Sto Fac Matter Collected 2002 | 211 113 133 576 408 561 Remotely 17 | . . 17 . . . Salvage Created 2174 | . 110 273 565 735 491 Parts 133 | . 3 23 30 38 39 Haulers Intercepted . | . . . . . . Recyclers Shooed 1 | . . . . . 1 Parts Field Recycled . | . . . . . . Retrieved Matter . | . . . . . . Parts Self-Destructed . | . . . . . . Prevented . | . . . . . . Kills | -11 -10 -9 -8 -8 -7 ------- Run | Yrd Mat Mat Mat Sto Fac Combat Hostiles Destroyed 55 | . 3 9 10 16 17 Melee 4 | . . . . . 4 Guns 35 | . 3 9 10 12 1 Cannons 9 | . . . . . 9 AOE 7 | . . . . 4 3 Classes Destroyed 9 | . 1 3 2 . 3 Worker 1 | . . . . . 1 Builder 3 | . . . 1 1 1 Recycler 3 | . . . 1 1 1 Watcher 3 | . . 1 1 . 1 Swarmer 12 | . . 5 3 . 4 Grunt 31 | . 3 3 5 12 8 Sentry 9 | . . 1 2 4 2 Hunter 2 | . . . . . 2 Programmer 1 | . . . . . 1 Best Kill Streak 7 | . 1 5 6 7 5 Combat Bots Only 6 | . 1 4 3 6 2 Max Kills in Single Turn 2 | . 1 1 2 2 1 Gunslinging . | . . . . . . Exploded 2 | . . . . 2 1 Melee 1 | . . . . . 1 Uniques/NPCs Destroyed . | . . . . . . Combat | -11 -10 -9 -8 -8 -7 -------- Run | Yrd Mat Mat Mat Sto Fac Hostile Shots Fired 548 | . 21 51 66 78 332 Missed 170 | . 5 15 8 28 114 Damage Taken 5389 | . 177 399 870 790 3153 Core 1029 | . . 132 116 75 706 Absorbed by Shields . | . . . . . . Core Remaining (%) 83 | 100 100 67 . 65 . Volleys Fired 174 | . 18 25 50 34 47 Largest 3 | . 2 2 3 3 3 Hottest 157 | . 70 70 95 90 157 Shots Fired 433 | . 36 50 149 92 106 Gun 322 | . 36 50 149 73 14 Cannon 94 | . . . . 9 85 Launcher 17 | . . . . 10 7 Special . | . . . . . . Kinetic 348 | . 18 25 144 82 79 Thermal 68 | . 18 25 5 . 20 Explosive 17 | . . . . 10 7 Electromagnetic . | . . . . . . Robot Hit Streak 27 | . 7 11 13 13 27 Robot Miss Streak 13 | . 2 5 5 2 13 Penetration Max . | . . . . . . Secondary Targets 1 | . . . 1 . . Max Gunslinging Chain 1 | . . . 1 . . Shots Hit Robots 268 | . 23 29 93 59 64 Core Hits 155 | . 8 15 37 38 57 Critical Kills . | . . . . . . Critical Parts Destroyed 1 | . . . 1 . . Critical Strikes 9 | . 2 2 2 . 3 Burn 5 | . 2 2 1 . . Destroy 1 | . . . 1 . . Blast 3 | . . . . . 3 Melee Attacks 4 | . . . . . 4 Impact 4 | . . . . . 4 Slashing . | . . . . . . Piercing . | . . . . . . Sneak Attacks . | . . . . . . Combat Hostiles . | . . . . . . Follow-up Attacks . | . . . . . . Damage Inflicted 5749 | . 233 299 1090 1670 2457 Guns 2561 | . 233 295 1090 815 128 Cannons 1433 | . . . . 77 1356 Explosions 1609 | . . . . 778 831 Melee . | . . . . . . Ramming 146 | . . 4 . . 142 Kinetic 3293 | . 97 94 1053 892 1157 Thermal 701 | . 136 201 37 . 327 Explosive 1609 | . . . . 778 831 Electromagnetic . | . . . . . . Impact . | . . . . . . Slashing . | . . . . . . Piercing . | . . . . . . Highest Corruption 4 | . . . . . 4 Average Corruption 3 | . . . . . 3 Corruption Purged . | . . . . . . Corruption Blocked . | . . . . . . Effects 3 | . . . . . 3 Message Errors 2 | . . . . . 2 Parts Rejected 1 | . . . . . 1 Overload Shots . | . . . . . . Overflow Damage 101 | . . . . 41 60 Projectiles 13 | . . . . . 13 Explosions 88 | . . . . 41 47 Melee . | . . . . . . Knockbacks 31 | . . . . . 31 Impact 3 | . . . . . 3 Kinetic 28 | . . . . . 28 Secondary . | . . . . . . Self-Inflicted Damage 116 | . . 2 . 37 77 Shots 4 | . . . . 2 2 Rammed 17 | . . 1 . . 16 Targets Rammed 20 | . . 1 . . 19 Kicked . | . . . . . . Crushed 3 | . . . . . 3 Highest Temperature 316 | . 110 55 316 69 180 Average Temperature 69 | . 45 21 123 24 63 Received Heat Transfer 1662 | . 96 102 405 405 654 Effects 3 | . . . 3 . . Energy Bleed 1 | . . . 1 . . Interference 2 | . . . 2 . . Siege Activations . | . . . . . . Robots Corrupted . | . . . . . . Combat Hostiles . | . . . . . . Parts Fried . | . . . . . . Impact Corruptions . | . . . . . . Robots Melted . | . . . . . . Combat Hostiles . | . . . . . . Parts Melted 2 | . 2 . . . . Heat Transferred 1850 | . 555 740 185 . 370 Parts Sabotaged . | . . . . . . Parts Stolen . | . . . . . . Parts Stripped . | . . . . . . Power Chain Reactions . | . . . . . . Alert | -11 -10 -9 -8 -8 -7 ------- Run | Yrd Mat Mat Mat Sto Fac Peak Influence 594 | . 89 226 352 594 302 Initial 170 | . . 37 94 86 170 Average 161 | . 32 100 171 267 184 Maximum Alert Level 2 | . . 1 1 2 1 Low Security (%) 68 | 100 100 94 64 36 60 Level 1 29 | . . 5 35 46 39 Level 2 1 | . . . . 17 . Level 3 . | . . . . . . Level 4 . | . . . . . . Level 5 . | . . . . . . High Security . | . . . . . . Max Security . | . . . . . . Squads Dispatched 12 | . 2 1 2 2 5 Investigation 2 | . . . 1 1 . Extermination 2 | . . . . . 2 Reinforcement 7 | . 2 1 1 1 2 Assault . | . . . . . . Garrison 1 | . . . . . 1 Intercept . | . . . . . . Searches Triggered . | . . . . . . Construction Impeded 2 | . . . . 1 1 Haulers Reinforced . | . . . . . . Active Scanning Responses . | . . . . . . Cargo Convoy Interrupts 1 | . . . . . 1 Stealth | -11 -10 -9 -8 -8 -7 --------- Run | Yrd Mat Mat Mat Sto Fac Distress Signals 5 | . . . 2 2 1 Communications Jammed . | . . . . . . Distress Signals . | . . . . . . Times Spotted 113 | . 7 22 17 20 47 Peak Tracking Total 13 | . 4 5 7 4 13 Tactical Retreats 11 | . . 4 1 1 5 Traps | -11 -10 -9 -8 -8 -7 ------- Run | Yrd Mat Mat Mat Sto Fac Traps Triggered 4 | . . 2 1 1 . Indirectly . | . . . . . . Trap Hack Attempts . | . . . . . . Triggered . | . . . . . . Disarmed . | . . . . . . Reprogrammed . | . . . . . . Reused . | . . . . . . Traps Extracted . | . . . . . . Installed . | . . . . . . Triggered . | . . . . . . Machines | -11 -10 -9 -8 -8 -7 ---------- Run | Yrd Mat Mat Mat Sto Fac Machines Disabled 1 | . . . . 1 . Max in Single Turn 1 | . . . . 1 . Machines Repaired . | . . . . . . Machines Dismantled . | . . . . . . Machines Sabotaged . | . . . . . . Overloaded Fab Kills . | . . . . . . Hacking | -11 -10 -9 -8 -8 -7 --------- Run | Yrd Mat Mat Mat Sto Fac Machines Accessed 14 | . 2 3 2 5 2 Terminals 13 | . 2 3 1 5 2 Fabricators . | . . . . . . Repair Stations . | . . . . . . Recycling Units . | . . . . . . Scanalyzers 1 | . . . 1 . . Garrison Access . | . . . . . . Total Hacks 43 | . 5 10 11 14 3 Successful 24 | . 1 7 7 7 2 Failed 19 | . 4 3 4 7 1 Catastrophic 5 | . 1 1 2 1 . Database Lockouts . | . . . . . . Manual 33 | . 5 11 9 7 1 Terminals 41 | . 5 10 9 14 3 Fabricators . | . . . . . . Repair Stations . | . . . . . . Recycling Units . | . . . . . . Scanalyzers 2 | . . . 2 . . Garrison Access . | . . . . . . Terminal Hacks 11 | . . 2 3 4 2 Record 3 | . . . . 1 2 Open Door 1 | . . . . 1 . Alert Level 2 | . . . 1 1 . Locate Traps 1 | . . . 1 . . Zone Layout 4 | . . 2 1 1 . Fabricator Hacks . | . . . . . . Repair Station Hacks . | . . . . . . Recycling Unit Hacks . | . . . . . . Scanalyzer 2 | . . . 2 . . Insert Component 1 | . . . 1 . . Analyze 1 | . . . 1 . . Garrison Access Hacks . | . . . . . . Unauthorized Hacks 11 | . 1 5 2 3 . Terminals 11 | . 1 5 2 3 . Track 5 | . 1 2 1 1 . Assimilate 6 | . . 3 1 2 . Fabricators . | . . . . . . Repair Stations . | . . . . . . Recycling Units . | . . . . . . Scanalyzers . | . . . . . . Garrison Access . | . . . . . . Data Cores Recovered . | . . . . . . Used . | . . . . . . Hacking Detections 14 | . 2 3 2 5 2 Full Trace Events . | . . . . . . Feedback Events . | . . . . . . Feedback Blocked . | . . . . . . Robot Schematics Acquired . | . . . . . . Robots Built . | . . . . . . Authchips . | . . . . . . Time . | . . . . . . Total Robot Build Rating . | . . . . . . Part Schematics Acquired 1 | . . . 1 . . Parts Built . | . . . . . . Authchips . | . . . . . . Time . | . . . . . . Total Part Build Rating . | . . . . . . Parts Repaired . | . . . . . . Time . | . . . . . . Parts Recycled . | . . . . . . Recycled Matter . | . . . . . . Retrieved Matter . | . . . . . . Retrieved Components . | . . . . . . Parts Scanalyzed 1 | . . . 1 . . Part Schematics Acquired 1 | . . . 1 . . Parts Damaged . | . . . . . . Bothacking | -11 -10 -9 -8 -8 -7 ------------ Run | Yrd Mat Mat Mat Sto Fac Used RIF Installer . | . . . . . . Robots Hacked . | . . . . . . Non-combat . | . . . . . . Combat . | . . . . . . Robot Hacks Applied . | . . . . . . Relay Couplers Released . | . . . . . . Fabnet Peak Effective % . | . . . . . . Robots Rewired . | . . . . . . Allies Hacked . | . . . . . . Hacks Repelled . | . . . . . . Allies | -11 -10 -9 -8 -8 -7 -------- Run | Yrd Mat Mat Mat Sto Fac Total Allies . | . . . . . . Largest Group . | . . . . . . Highest-Rated Group . | . . . . . . Highest-Rated Ally . | . . . . . . Total Orders . | . . . . . . Ally Attacks . | . . . . . . Total Damage . | . . . . . . Kills . | . . . . . . Allies Corrupted . | . . . . . . Allies Melted . | . . . . . . Intel | -11 -10 -9 -8 -8 -7 ------- Run | Yrd Mat Mat Mat Sto Fac Robot Analysis Total . | . . . . . . Derelict Logs Recovered . | . . . . . . Drone Launches . | . . . . . . Drone Recoveries . | . . . . . . Exploration | -11 -10 -9 -8 -8 -7 ------------- Run | Yrd Mat Mat Mat Sto Fac Turns Passed 3668 | 76 280 657 527 400 1728 Spaces Moved 2316 | 57 183 509 325 242 1000 Core 180 | 14 . . . . 166 Treads 711 | . . . . . 711 Legs 87 | 43 44 . . . . Wheels 1338 | . 139 509 325 242 123 Hover . | . . . . . . Flight . | . . . . . . Fastest Speed 50 | 50 100 95 86 90 50 Average Speed 120 | 108 111 99 97 101 144 Slowest Speed 243 | 150 130 120 105 130 243 Overloaded Moves . | . . . . . . Propulsion Burnouts . | . . . . . . Robots Hopped . | . . . . . . Cave-ins Triggered . | . . . . . . Exploration Rate (%) 31 | 3 31 52 25 48 31 Regions Visited 5 Branch Regions 1 Pre-discovered Areas . | . . . . . . Known Exits Taken 2 | . . . 1 1 . Unknown Exits Taken 3 | 1 1 1 . . . Scrap Searched . | . . . . . . Spaces Dug 3 | . . . . . 3 Terrain Destroyed 111 | . . . . 70 41 Melee 3 | . . . . . 3 Projectile 18 | . . . . 4 14 AOE 90 | . . . . 66 24 Terrain Rammed . | . . . . . . Walls Destroyed . | . . . . . . Machines Disabled . | . . . . . . Actions | -11 -10 -9 -8 -8 -7 --------- Run | Yrd Mat Mat Mat Sto Fac Total 2862 | 69 225 614 455 328 1171 Wait 180 | . 15 45 43 31 46 Move 2311 | 56 182 508 324 241 1000 Hop . | . . . . . . Pick Up 58 | 7 3 13 12 4 19 Fast Attach 30 | 5 3 5 2 5 10 Attach 19 | 1 . 1 6 2 9 Detach 3 | . . . 1 . 2 Swap 25 | . 2 6 5 6 6 Drop 38 | . 2 10 12 5 9 Fire 174 | . 18 25 50 34 47 Melee 4 | . . . . . 4 Ram 1 | . . 1 . . . Kick . | . . . . . . Crush 19 | . . . . . 19 Escape Stasis . | . . . . . . Rewire . | . . . . . . Trap . | . . . . . . Miscellaneous . | . . . . . . Route ------- -11/Scrapyard -10/Materials -9/Materials (discovered 2 exits: *Mat / [*Min]) -8/Materials -8/Storage -7/Factory History --------- Turn | Location | Event 6 | -11/Scrapyard | Discovered new exit (range 15) 77 | -11/Scrapyard | Entered Materials 299 | -10/Materials | Discovered new exit (range 3) 308 | -10/Materials | Build established: Mutant 357 | -10/Materials | Entered another Materials area 357 | -9/Materials | Evolved 2 slots: Utility x2 629 | -9/Materials | Discovered new exit (range 9) 997 | -9/Materials | Discovered new exit (range 17) 1014 | -9/Materials | Entered another Materials area 1014 | -8/Materials | Evolved 2 slots: Propulsion x1, Weapon x1 1314 | -8/Materials | Discovered new exit (range 12) 1477 | -8/Materials | Identified exit to Storage 1541 | -8/Materials | Entered Storage 1826 | -8/Storage | Lost 5 parts (2p2n1w) 1910 | -8/Storage | Discovered new exit (range 18) 1938 | -8/Storage | Identified exit to Factory 1941 | -8/Storage | Entered Factory 1941 | -7/Factory | Evolved 2 slots: Propulsion x1, Utility x1 2041 | -7/Factory | Garrison activated, responded to threat 2059 | -7/Factory | Build established: Scavenger-Gunner 3555 | -7/Factory | Cargo convoy interrupted 3584 | -7/Factory | Core integrity fell below 50% 3618 | -7/Factory | Lost 12 parts (1p5n2u4w) 3624 | -7/Factory | Core integrity fell below 20% 3669 | -7/Factory | Destroyed by Y-54 Guardian with Gatling Laser Last Messages --------------- 03586_ Slug penetrates X-62 Marksman. 03586_ Penetrated by Slug. 03586_ M-28 Smith repairs I-36 Angel. 03587_ Imp. Light Armor Plating destroyed. 03587_ M-13 Machinist repairs H-55 Commando. 03588_ Slug penetrates Wall. 03609_ ALERT: Rogue bot located, Programmers report to Factory Zone 4X. 03620_ Penetrated by Slug. 03620_ H-55 Commando destroyed. 03621_ Slug penetrates X-57 Shotgunner. 03622_ JW 1|G%GRLJ8,0QZO3/JJZJ/AF4WMI6QMG 03623_ Slug penetrates Wall. 03626_ Penetrated by Slug. 03626_ Slug penetrates Wall. 03652_ K-01 Serf cleans the Fusion Modulator. 03655_ Acquired Cesium-ion Thruster. 03659_ M-13 Machinist repairs Shock Rifle. 03661_ K-01 Serf cleans the Fusion Modulator. 03666_ System corrupted: Cesium-ion Thruster rejected. 03666_ Acquired Cesium-ion Thruster. Map ----- +----------------------------------------------------+ | ?????????????????????????????????????????????????? | | ?????????????????????????????????????????????????? | | ?????????????????????????????????????????????????? | | ?????????????????????????????????????????????????? | | ?????????????????????????????????????????????????? | | ?????????????????????????????????????????????????? | | ?????????????????????????????????????????????????? | | ?????????????????????????????????????????????????? | | ?????????????????????????????????????????????????? | | ?????????????????????????????????????????????????? | | ?????????????????????????????????????????????????? | | ?????????????????????????????????????????????????? | | ?????????????????????????????????????????????????? | | ?????????????????????????????????????????????????? | | ?????????????????????????????????????????????????? | | ?????????????????????????????????????????????????? | | ????????###?????#??######????????????????????????? | | ######### ###???? ? #????????????????????????? | | #??? #????????????????????????? | | """ "" #???""" """ #????????????????????????? | | """ "" #???""" """ #????????????????????????? | | """ F" #????"" """ #????????????????????????? | | ! "" #?????? #????????????????????????? | | #????????"" #????????????????????????? | | ] ###########+##+###+##????????????????? | | Y/ @ #????????????????? | | ########+######## ##### ##### #????????????????? | | #??????# #??????# #???# #????????????????????????? | | #??????# #??????# #???# #????????????????????????? | | #??????# #??????#+#???#+#????????????????????????? | | #?????? ???????????????????????????????????????? | | ###### #????????????????????????????????? | | +????????????????????????????????? | | ###### #????????????????????????????????? | | #??? ???????????????????????????????????????? | | #???#+#???????????????????????????????????????? | | !#?????????????????????????????????????????????? | | ! #?????????????????????????????????????????????? | | #?????????????????????????????????????????????? | | "" #?????????????????????????????????????????????? | | "" #?????????????????????????????????????????????? | | "" #?????????????????????????????????????????????? | | "" #?????????????????????????????????????????????? | | ####?????????????????????????????????????????????? | | ?????????????????????????????????????????????????? | | ?????????????????????????????????????????????????? | | ?????????????????????????????????????????????????? | | ?????????????????????????????????????????????????? | | ?????????????????????????????????????????????????? | | ?????????????????????????????????????????????????? | +----------------------------------------------------+ Best States ------------- Heat Dissipation 34 Energy Generation 15 Energy Capacity 250 Matter Stores 300 Matter Capacity 300 Sight Range 18 Terrain Scan Density 10 Armor Coverage 225 Evasion (%) 55 Targeting Accuracy 8 Armor Integrity Analysis 30 Recoil Reduction 4 Item Schematics ----------------- Arm. Wheel | -8/Materials | Scanalyzed Robot Schematics ------------------ None Fabricated ------------ Nothing Alien Tech Used ----------------- None Achievements -------------- None Challenges ------------ None Game ------ Seed NeutronKineticBoregun Manual? 0 Play Time 00:48:04 Cumulative 29.4 hours Start 2024.03.05 @ 22:00:28 End 2024.03.05 @ 22:55:14 Sessions 1 Manual Loads 0 Difficulty Rogue Special Mode None Game No. 32 Rogue 32 Adventurer 0 Explorer 0 Win Type - Total 0 Types 0/0/0/0/0/0/0/0/0 Lore% 11 Gallery% 30 Achievement% 24 Wizard Run 0 Options --------- Layout 0 ASCII 0 Keyboard 0 Movement Numpad Keybinds 0 Fullscreen 1 Font 18/SmallcapsGlow Map View 76x50 Zoom Use 0% Tactical HUD 1 Map Filters NONE Filters NONE Steam 1 RUN: 395d8c05-0ff2-4544-9206-c2387072ff81